bitfinex/quotes_SOLUSD_20220113
["timestamp","ask_amount","ask_price","bid_price","bid_amount"]
[1642094842908,6.25,150.87,150.74,9.9483]
[1642094843104,9.9469,150.86,150.73,2.652]
[1642094843306,2.652,150.85,150.73,2.652]
[1642094843504,8.902,150.85,150.69,2.652]
[1642094843905,15.23112899,150.84,150.7,13.98360384]
[1642094844204,2.653,150.83,150.71,2.653]
[1642094844406,24.13412899,150.84,150.71,2.653]
[1642094844607,9.9496,150.81,150.71,12.8639]
[1642094845103,10.1996,150.81,150.71,12.8639]
[1642094845305,24.06892706,150.81,150.71,13.1139]
[1642094845504,30.06892706,150.81,150.71,13.1139]
[1642094845804,30.06892706,150.81,150.69,9.9517]
[1642094846005,2.653,150.8,150.66,2.653]
[1642094846205,9.9536,150.75,150.64,439.5716193]
[1642094846406,9.9536,150.75,150.65,2.654]
[1642094846605,16.2036,150.75,150.65,2.654]
[1642094846805,16.142632,150.74,150.65,2.654]
[1642094847009,22.392632,150.74,150.64,449.5266193]
[1642094847206,9.9552,150.73,150.64,449.5266193]
[1642094847705,16.2052,150.73,150.63,2.654]
[1642094848106,10.474,150.72,150.63,2.654]
[1642094848305,9.9594,150.68,150.63,2.654]
[1642094848506,78.08111622,150.67,150.63,2.654]
[1642094848908,84.33111622,150.67,150.63,2.654]
[1642094850109,24.0294,150.67,150.63,2.654]
[1642094850311,13.82,150.67,150.57,5.27894148]
[1642094850513,6.25,150.67,150.58,2.654]
[1642094850911,0.25,150.67,150.58,2.914]
[1642094851110,6.25,150.67,150.58,2.914]
[1642094851314,6.0,150.67,150.59,9.9588]
[1642094851511,2.654,150.72,150.59,10.2088]
[1642094851710,7.82,150.74,150.6,2.654]
[1642094852116,6.0,150.74,150.61,1.64999521]
[1642094852315,6.0,150.74,150.66,9.9541]
[1642094852511,16.8424583,150.76,150.66,18.13704148]
[1642094852713,6.0,150.78,150.66,18.13704148]
[1642094852910,6.0,150.76,150.66,25.84704148]
[1642094853110,7.82,150.82,150.66,31.84704148]
[1642094853511,79.15,150.82,150.66,31.84704148]
[1642094853711,13.1741933,150.81,150.66,31.84704148]
[1642094853914,78.5041933,150.81,150.66,24.39704148]
[1642094854111,84.5041933,150.81,150.66,24.13704148]
[1642094854312,84.5041933,150.81,150.66,24.39704148]
[1642094854513,2.653,150.8,150.66,24.39704148]
[1642094854912,8.903,150.8,150.66,24.39704148]
[1642094855112,8.653,150.8,150.66,24.39704148]
[1642094855312,18.6032,150.8,150.66,24.39704148]
[1642094855712,18.6032,150.8,150.66,24.13704148]
[1642094855911,18.6032,150.8,150.66,18.13704148]
[1642094855912,65.33,150.79,150.66,18.13704148]
[1642094856215,15.33995485,150.78,150.66,18.13704148]
[1642094856415,25.29155485,150.78,150.66,18.13704148]
[1642094856648,65.33,150.77,150.66,12.8581]
[1642094856818,65.58,150.77,150.66,12.6081]
[1642094857016,71.33,150.77,150.66,12.8581]
[1642094857219,71.33,150.77,150.66,12.6081]
[1642094857418,6.0,150.77,150.66,12.8581]
[1642094857618,6.0,150.77,150.72,9.9503]
[1642094857818,6.0,150.78,150.72,9.9503]
[1642094858021,71.33,150.81,150.72,9.9503]
[1642094858221,65.33,150.81,150.72,9.9503]
[1642094858419,71.58,150.81,150.72,9.9503]
[1642094858619,86.94459584,150.81,150.72,9.9503]
[1642094858820,6.0,150.81,150.72,9.9503]
[1642094859120,8.653,150.83,150.72,9.9503]
[1642094859320,6.0,150.83,150.72,9.9503]
[1642094859620,2.652,150.87,150.72,18.0423]
[1642094859825,13.60794737,150.89,150.8,9.9447]
[1642094860020,13.60794737,150.89,150.8,10.1947]
[1642094860221,13.60794737,150.89,150.8,9.9447]
[1642094861122,29.55174737,150.89,150.8,9.9447]
[1642094861522,19.60794737,150.89,150.8,9.9447]
[1642094861922,13.60794737,150.89,150.8,10.2047]
[1642094862123,2.65,150.95,150.8,24.32515695]
[1642094862124,7.82,150.94,150.8,24.32515695]
[1642094862327,9.941,150.93,150.81,2.65]
[1642094862527,15.941,150.93,150.86,9.941]
[1642094863123,15.7919176,150.92,150.86,9.941]
[1642094863526,15.7919176,150.92,150.81,3.16]
[1642094863527,31.9836176,150.92,150.81,2.65]
[1642094863722,2.65,150.91,150.81,2.65]
[1642094863923,87.3719176,150.92,150.81,2.65]
[1642094864150,0.25,150.91,150.81,2.65]
[1642094864323,87.3719176,150.92,150.81,2.65]
[1642094864722,9.9434,150.9,150.82,9.9438]
[1642094864927,9.9434,150.9,150.79,1.82261784]
[1642094865122,1.64999521,150.89,150.78,1.82261784]
[1642094865324,4.29999521,150.89,150.78,1.82261784]
[1642094865523,7.82,150.88,150.78,1.82261784]
[1642094865823,15.8478836,150.87,150.78,1.82261784]
[1642094866022,7.82,150.86,150.78,1.82261784]
[1642094866223,13.85230968,150.84,150.75,1.82261784]
[1642094866624,14.99076792,150.81,150.75,11.77101784]
[1642094867024,21.24076792,150.81,150.75,11.77101784]
[1642094867324,21.24076792,150.81,150.75,9.9484]
[1642094867530,15.24076792,150.81,150.75,9.9484]
[1642094867724,21.24076792,150.81,150.75,9.9484]
[1642094870427,31.18956792,150.81,150.75,9.9484]
[1642094870827,21.24076792,150.81,150.75,9.9484]
[1642094871830,6.0,150.81,150.75,9.9484]
[1642094872029,13.82,150.84,150.75,9.9484]
[1642094872232,9.9486,150.82,150.75,9.9484]
[1642094872733,15.9486,150.82,150.75,9.9484]
[1642094872931,6.0,150.82,150.75,9.9484]
[1642094873332,15.9467,150.85,150.75,10.1984]
[1642094873732,15.9467,150.85,150.75,9.9484]
[1642094874134,16.33096826,150.84,150.75,9.9484]
[1642094874334,26.27826826,150.84,150.75,9.9484]
[1642094874537,32.27826826,150.84,150.75,9.9484]
[1642094874735,15.9473,150.84,150.75,9.9484]
[1642094874936,2.652,150.87,150.75,10.4584]
[1642094875138,2.652,150.91,150.82,9.9431]
[1642094875339,65.33,150.92,150.82,16.0651]
[1642094875637,71.33,150.92,150.82,16.0651]
[1642094875837,16.71779211,150.91,150.82,16.0651]
[1642094876039,32.66009211,150.91,150.76,2.652]
[1642094876240,10.47,150.9,150.79,9.9456]
[1642094876440,10.47,150.9,150.75,2.65]
[1642094876740,16.47,150.9,150.75,2.65]
[1642094876940,16.72,150.9,150.75,2.91]
[1642094877141,16.72,150.9,150.75,18.02494764]
[1642094877341,16.47,150.9,150.75,18.02494764]
[1642094877543,16.47,150.9,150.75,3.16]
[1642094877742,79.15,150.9,150.75,9.16]
[1642094878243,9.9444,150.88,150.78,9.9463]
[1642094878643,17.45533689,150.87,150.78,9.9463]
[1642094879043,23.70533689,150.87,150.78,9.9463]
[1642094879268,1.88076219,150.85,150.78,9.9463]
[1642094879470,8.13076219,150.85,150.78,10.2063]
[1642094880073,8.13076219,150.85,150.78,16.2063]
[1642094880275,13.2629196,150.84,150.78,10.2063]
[1642094880475,13.5129196,150.84,150.78,9.9463]
[1642094881875,19.5129196,150.84,150.78,9.9463]
[1642094882274,19.2629196,150.84,150.78,9.9463]
[1642094882474,13.2629196,150.84,150.78,10.1963]
[1642094882676,13.2629196,150.84,150.78,9.9463]
[1642094883977,13.2629196,150.84,150.78,10.1963]
[1642094884375,1.88076219,150.85,150.78,9.9463]
[1642094884576,2.13076219,150.85,150.78,10.1963]
[1642094885376,2.13076219,150.85,150.78,14.35958046]
[1642094885581,1.88076219,150.85,150.78,20.61958046]
[1642094885777,1.88076219,150.86,150.79,2.652]
[1642094885979,1.88076219,150.86,150.82,9.9411]
[1642094886180,1.88076219,150.86,150.83,2.65]
[1642094886381,5.69882635,150.92,150.84,50.0]
[1642094886579,5.69882635,150.92,150.85,18.42893342]
[1642094886980,5.69882635,150.92,150.88,9.9383]
[1642094887181,5.69882635,150.92,150.88,12.5883]
[1642094887380,5.69882635,150.96,150.88,23.00158046]
[1642094887580,5.69882635,150.96,150.88,19.0983]
[1642094888183,11.69882635,150.96,150.88,19.0983]
[1642094888682,6.0,150.96,150.88,19.0983]
[1642094888982,3.79697526,150.98,150.88,19.0983]
[1642094889782,0.33276083,150.99,150.88,19.0983]
[1642094889982,0.33276083,150.99,150.88,84.4283]
[1642094890184,13.88309682,150.99,150.88,18.8483]
[1642094890383,13.88309682,150.99,150.88,18.5883]
[1642094890785,13.88309682,150.99,150.88,12.5883]
[1642094890984,2.65,150.98,150.88,9.4383]
[1642094891384,8.9,150.98,150.88,9.4383]
[1642094892084,69.12750325,150.97,150.88,9.4383]
[1642094892284,9.9392,150.96,150.88,9.4383]
[1642094892486,16.1892,150.96,150.88,9.4383]
[1642094893185,13.0232973,150.95,150.88,9.4383]
[1642094893586,13.2732973,150.95,150.88,9.4383]
[1642094893786,13.0232973,150.95,150.88,9.4383]
[1642094893991,0.33276083,150.99,150.88,9.9483]
[1642094894187,6.0,150.98,150.88,9.9483]
[1642094894391,0.33276083,150.99,150.88,9.9483]
[1642094894987,13.63735013,150.98,150.88,9.9483]
[1642094895188,17.43461879,150.98,150.88,24.33275619]
[1642094895390,23.43461879,150.98,150.88,30.33275619]
[1642094895587,23.43461879,150.98,150.88,24.33275619]
[1642094895789,23.43461879,150.98,150.88,30.33275619]
[1642094896289,19.63735013,150.98,150.88,30.33275619]
[1642094896590,6.0,150.98,150.93,9.9355]
[1642094896990,0.33276083,150.99,150.93,10.4455]
[1642094898091,0.33276083,150.99,150.93,9.9355]
[1642094898393,0.33276083,150.99,150.91,9.9372]
[1642094899493,2.98176083,150.99,150.91,9.9372]
[1642094899895,3.79698659,150.98,150.91,9.9372]
[1642094900097,13.40346138,150.97,150.91,9.9372]
[1642094900497,19.65346138,150.97,150.91,9.9372]
[1642094901398,3.79698659,150.98,150.91,10.1872]
[1642094901597,3.79698659,150.98,150.92,2.649]
[1642094901797,0.33276083,150.99,150.92,2.649]
[1642094901798,0.33276083,150.99,150.95,9.9347]
[1642094902398,13.70557147,150.99,150.95,9.9347]
[1642094902802,19.70557147,150.99,150.92,2.649]
[1642094903000,19.70557147,150.99,150.89,48.3047]
[1642094903301,29.89287147,150.99,150.89,0.25]
[1642094903900,3.79693128,150.98,150.89,0.25]
[1642094904101,10.04693128,150.98,150.87,8.649]
[1642094904301,10.04693128,150.98,150.91,9.9373]
[1642094904904,6.25,150.98,150.91,9.9373]
[1642094905103,0.25,150.98,150.91,9.9373]
[1642094905304,89.3375,150.98,150.83,48.7056]
[1642094905528,2.649,150.97,150.83,48.7056]
[1642094905729,7.82,150.96,150.82,10.0552]
[1642094905928,2.65,150.95,150.81,7.82]
[1642094906129,85.15297363,150.95,150.81,7.82]
[1642094906337,7.82,150.94,150.79,16.38580901]
[1642094906534,14.07,150.94,150.79,22.63580901]
[1642094907131,14.07,150.94,150.84,9.9424]
[1642094907132,9.941,150.93,150.84,9.9424]
[1642094907334,6.25,150.94,150.84,9.9424]
[1642094907835,0.25,150.94,150.84,9.9424]
[1642094908032,0.25,150.94,150.84,10.1924]
[1642094908232,10.1901,150.94,150.84,10.1924]
[1642094908835,15.9401,150.94,150.84,10.1924]
[1642094909233,6.0,150.94,150.84,10.1924]
[1642094909534,88.50297363,150.95,150.84,10.1924]
[1642094910034,7.82,150.94,150.84,10.1924]
[1642094910235,73.15,150.94,150.84,10.1924]
[1642094910435,79.4,150.94,150.84,10.1924]
[1642094910636,6.25,150.94,150.84,10.1924]
[1642094910835,6.0,150.94,150.84,27.02953216]
[1642094911036,23.17297363,150.95,150.84,27.02953216]
[1642094911237,17.17297363,150.95,150.85,2.65]
[1642094911442,17.17297363,150.95,150.9,9.9376]
[1642094912238,17.17297363,150.95,150.85,8.65]
[1642094912438,23.17297363,150.95,150.87,9.9398]
[1642094913037,23.42297363,150.95,150.87,10.4498]
[1642094913639,17.42297363,150.95,150.87,10.4498]
[1642094914440,17.42297363,150.95,150.87,13.0998]
[1642094915841,6.25,150.95,150.87,13.0998]
[1642094916041,0.25,150.95,150.87,13.0998]
[1642094916448,10.04727085,150.97,150.87,13.0998]
[1642094916682,4.04727085,150.97,150.87,13.0998]
[1642094916844,10.04727085,150.97,150.87,13.0998]
[1642094917043,9.79727085,150.97,150.88,3.63268567]
[1642094917244,9.79727085,150.97,150.92,9.9363]
[1642094917643,3.79727085,150.97,150.92,10.1863]
[1642094918044,18.80435141,150.99,150.92,10.1863]
[1642094918245,19.05435141,150.99,150.92,9.9363]
[1642094918445,25.05435141,150.99,150.92,9.9363]
[1642094919045,21.25708056,150.99,150.92,9.9363]
[1642094919945,73.15,150.98,150.89,2.65]
[1642094920145,75.8,150.98,150.89,2.65]
[1642094920446,82.05,150.98,150.89,2.65]
[1642094921348,82.05,150.98,150.86,27.6301]
[1642094922245,9.9402,150.94,150.87,9.94]
[1642094922745,0.25,150.94,150.87,9.94]
[1642094922947,0.25,150.94,150.87,10.19]
[1642094923146,13.59469938,150.97,150.87,10.19]
[1642094923346,14.31313838,150.96,150.87,10.19]
[1642094923546,20.56313838,150.96,150.87,10.19]
[1642094924846,14.56313838,150.96,150.87,10.19]
[1642094925147,95.83173838,150.96,150.87,10.19]
[1642094925347,95.83173838,150.96,150.86,2.65]
[1642094925550,2.65,150.95,150.86,2.65]
[1642094925848,7.82,150.94,150.86,2.65]
[1642094926149,14.96072715,150.92,150.79,3.46308269]
[1642094926347,2.65,150.91,150.79,3.46308269]
[1642094926550,16.73232454,150.89,150.81,9.9445]
[1642094927052,0.25,150.89,150.81,10.1945]
[1642094927250,3.79727085,150.92,150.81,10.4545]
[1642094927450,3.79727085,150.92,150.82,2.65]
[1642094927651,3.79727085,150.92,150.87,9.9403]
[1642094928051,15.48387639,150.91,150.84,2.65]
[1642094928251,15.48387639,150.91,150.82,2.65]
[1642094928450,15.73387639,150.91,150.82,2.65]
[1642094928950,87.06387639,150.91,150.82,2.65]
[1642094929555,97.00587639,150.91,150.79,26.974]
[1642094929750,2.65,150.9,150.77,27.5862]
[1642094929950,8.65,150.9,150.77,33.5862]
[1642094930150,74.23,150.9,150.77,27.5862]
[1642094930552,74.23,150.9,150.77,44.99477135]
[1642094930752,74.23,150.9,150.77,45.24477135]
[1642094930953,71.58,150.9,150.77,45.24477135]
[1642094931153,9.9446,150.88,150.81,9.9446]
[1642094931356,15.9446,150.88,150.81,9.9446]
[1642094931557,16.1946,150.88,150.81,9.9446]
[1642094931983,32.50832076,150.88,150.81,9.9446]
[1642094932584,0.25,150.88,150.81,9.9446]
[1642094932784,6.25,150.88,150.81,9.9446]
[1642094933386,6.0,150.88,150.81,9.9446]
[1642094933790,17.46914821,150.9,150.81,9.9446]
[1642094933989,23.46914821,150.9,150.81,9.9446]
[1642094934190,9.9433,150.89,150.81,9.9446]
[1642094934694,0.33276083,150.99,150.91,9.9369]
[1642094934894,0.33276083,150.99,150.92,2.649]
[1642094935091,6.083e-05,150.99,150.92,6.51]
[1642094935291,6.083e-05,150.99,150.93,2.649]
[1642094935493,6.083e-05,150.99,150.93,8.649]
[1642094935692,6.083e-05,150.99,150.93,6.0]
[1642094935891,6.083e-05,150.99,150.9,2.649]
[1642094936093,6.083e-05,150.99,150.87,2.649]
[1642094936292,6.083e-05,150.99,150.84,2.65]
[1642094936495,6.083e-05,150.99,150.84,8.9]
[1642094936894,9.93936083,150.99,150.88,22.38107452]
[1642094937095,15.93936083,150.99,150.89,2.65]
[1642094937494,81.26936083,150.99,150.89,2.9]
[1642094937694,83.91936083,150.99,150.89,0.25]
[1642094937896,81.26936083,150.99,150.89,0.25]
[1642094938096,15.93936083,150.99,150.89,10.1891]
[1642094938296,6.00006083,150.99,150.89,10.1891]
[1642094938496,6.083e-05,150.99,150.89,10.1891]
[1642094938696,71.33006083,150.99,150.89,10.1891]
[1642094939395,71.33006083,150.99,150.86,35.7772]
[1642094939396,81.26876083,150.99,150.86,2.65]
[1642094939596,83.91876083,150.99,150.86,2.9]
[1642094939800,16.12482986,150.97,150.86,2.65]
[1642094939998,65.33,150.95,150.86,2.65]
[1642094940198,10.47,150.94,150.86,2.65]
[1642094940399,9.9444,150.9,150.86,2.65]
[1642094940600,10.1944,150.9,150.86,2.65]
[1642094940802,14.84548392,150.89,150.86,2.65]
[1642094941101,6.06439994,150.88,150.86,2.65]
[1642094941301,16.00999994,150.88,150.75,375.25651367]
[1642094941500,73.15,150.87,150.76,2.652]
[1642094941700,2.652,150.86,150.71,2.652]
[1642094941900,8.12051072,150.85,150.7,2.652]
[1642094942101,2.652,150.84,150.68,2.652]
[1642094942302,24.15967573,150.83,150.68,18.37782414]
[1642094942500,95.73967573,150.83,150.68,18.37782414]
[1642094943099,95.73967573,150.83,150.69,3.46091515]
[1642094943301,40.35857573,150.83,150.72,9.9498]
[1642094943699,105.68857573,150.83,150.72,9.9498]
[1642094944501,105.68857573,150.83,150.72,10.1998]
[1642094944702,40.35857573,150.83,150.72,10.1998]
[1642094945302,30.40967573,150.83,150.72,10.1998]
[1642094945502,30.40967573,150.83,150.72,10.4598]
[1642094945701,30.40967573,150.83,150.72,10.1998]
[1642094945902,30.40967573,150.83,150.73,2.652]
[1642094946104,22.33967573,150.83,150.75,9.9482]
[1642094946506,16.33967573,150.83,150.75,10.1982]
[1642094946906,26.28807573,150.83,150.73,6.35981251]
[1642094947107,40.57407573,150.83,150.73,3.70781251]
[1642094947307,69.63199521,150.82,150.73,3.70781251]
[1642094947510,74.232,150.82,150.73,3.70781251]
[1642094947711,74.232,150.82,150.67,2.652]
[1642094947906,9.9514,150.79,150.67,8.652]
[1642094948108,14.16551367,150.78,150.67,2.652]
[1642094948407,14.16551367,150.78,150.69,9.9523]
[1642094948606,20.41551367,150.78,150.69,9.9523]
[1642094948808,14.41551367,150.78,150.69,9.9523]
[1642094949007,14.16551367,150.78,150.69,9.9523]
[1642094949606,14.16551367,150.78,150.69,10.4623]
[1642094950007,14.16551367,150.78,150.69,10.2023]
[1642094950437,7.82,150.83,150.7,5.45042287]
[1642094950640,7.82,150.87,150.76,9.9472]
[1642094950837,17.31390056,150.96,150.76,9.9472]
[1642094950838,7.82,150.9,150.76,9.9472]
[1642094951037,7.82,150.92,150.76,24.0172]
[1642094951239,65.33,150.91,150.76,24.2772]
[1642094951439,2.65,150.9,150.76,24.0172]
[1642094951639,2.65,150.9,150.76,26.6672]
[1642094951838,13.45894587,150.88,150.76,26.6672]
[1642094952041,19.45894587,150.88,150.76,19.1072]
[1642094952239,19.45894587,150.88,150.76,18.8472]
[1642094952440,19.45894587,150.88,150.77,13.74712766]
[1642094952744,27.27894587,150.88,150.77,3.80042766]
[1642094953040,67.982,150.87,150.77,3.80042766]
[1642094953240,75.802,150.87,150.72,2.652]
[1642094953442,82.052,150.87,150.72,8.912]
[1642094953640,82.052,150.87,150.72,2.912]
[1642094953939,82.052,150.87,150.73,3.79981346]
[1642094954141,65.33,150.85,150.74,2.652]
[1642094954341,2.652,150.84,150.73,3.79981346]
[1642094954541,65.33,150.82,150.73,3.79981346]
[1642094954741,10.472,150.81,150.73,3.79981346]
[1642094954941,16.722,150.81,150.66,2.652]
[1642094955141,16.10159822,150.8,150.66,2.652]
[1642094955344,26.05289822,150.8,150.68,9.953]
[1642094955641,2.653,150.79,150.68,9.953]
[1642094955842,67.983,150.79,150.68,9.953]
[1642094956041,74.233,150.79,150.68,9.953]
[1642094956442,9.9535,150.76,150.67,13.75457021]
[1642094956645,9.9535,150.76,150.67,3.80097021]
[1642094956844,67.984,150.75,150.67,3.80097021]
[1642094957043,89.649,150.75,150.67,3.80097021]
[1642094957244,89.649,150.75,150.59,2.654]
[1642094957643,89.649,150.75,150.59,15.10275866]
[1642094957644,15.53691387,150.74,150.59,15.10275866]
[1642094957846,9.9566,150.71,150.59,31.06145866]
[1642094958042,16.9149008,150.7,150.59,31.06145866]
[1642094958444,23.1649008,150.7,150.6,3.80246649]
[1642094958645,16.9149008,150.7,150.6,11.4524617]
[1642094958845,16.9149008,150.7,150.61,2.654]
[1642094959044,7.82,150.75,150.62,9.9564]
[1642094959344,7.82,150.75,150.63,2.654]
[1642094959543,7.82,150.75,150.63,10.56399521]
[1642094959744,7.82,150.75,150.63,10.81399521]
[1642094959945,7.82,150.75,150.64,1.64999521]
[1642094959946,15.21252589,150.74,150.64,1.64999521]
[1642094960145,15.21252589,150.74,150.66,9.9536]
[1642094960546,15.21252589,150.74,150.66,15.9536]
[1642094961148,15.21252589,150.74,150.66,18.6076]
[1642094961347,15.21252589,150.74,150.66,12.8576]
[1642094961749,2.654,150.78,150.67,3.80246649]
[1642094961949,6.0,150.78,150.71,9.9508]
[1642094962147,10.473,150.83,150.71,9.9508]
[1642094962148,6.0,150.79,150.72,2.653]
[1642094962549,8.653,150.84,150.72,2.903]
[1642094962750,0.25,150.79,150.72,0.25]
[1642094962955,9.9503,150.81,150.72,2.653]
[1642094962956,77.85404148,150.8,150.72,2.653]
[1642094963150,84.10404148,150.8,150.71,0.41257058]
[1642094963350,7.82,150.79,150.71,0.41257058]
[1642094963552,2.653,150.78,150.71,0.41257058]
[1642094963751,6.25,150.78,150.71,0.41257058]
[1642094963951,12.77600854,150.76,150.71,0.41257058]
[1642094964150,10.473,150.75,150.71,0.41257058]
[1642094964449,10.723,150.75,150.71,0.41257058]
[1642094964852,14.07,150.75,150.71,0.41257058]
[1642094965653,53.0,150.74,150.63,2.653]
[1642094965952,65.33,150.72,150.63,2.653]
[1642094966153,73.15,150.72,150.63,2.653]
[1642094966354,73.4,150.72,150.63,2.653]
[1642094967352,9.9568,150.71,150.61,9.9569]
[1642094967554,65.33,150.69,150.59,2.654]
[1642094967752,0.25,150.71,150.59,16.474]
[1642094967952,2.654,150.78,150.61,1.64999521]
[1642094968154,0.25,150.73,150.62,58.2152]
[1642094968353,0.25,150.73,150.62,79.36025006]
[1642094968552,0.25,150.73,150.62,85.36025006]
[1642094968752,0.25,150.73,150.64,12.87488783]
[1642094968953,0.25,150.73,150.65,2.654]
[1642094969181,21.12120003,150.77,150.64,14.08]
[1642094969352,7.82,150.76,150.64,0.51]
[1642094969552,0.25,150.76,150.64,0.25]
[1642094969752,8.07,150.76,150.65,3.74378756]
[1642094969952,9.9542,150.75,150.65,3.74378756]
[1642094970153,17.21270281,150.74,150.65,3.74378756]
[1642094970561,17.46270281,150.74,150.65,3.74378756]
[1642094970758,23.46270281,150.74,150.65,3.74378756]
[1642094971555,17.46270281,150.74,150.65,3.74378756]
[1642094971755,17.21270281,150.74,150.64,3.74378756]
[1642094971954,23.21270281,150.74,150.64,3.74378756]
[1642094972157,31.03270281,150.74,150.64,3.74378756]
[1642094973156,40.98750281,150.74,150.64,13.69918756]
[1642094973557,41.23750281,150.74,150.64,13.69918756]
[1642094974255,2.654,150.73,150.64,9.9554]
[1642094974456,0.25,150.73,150.65,2.654]
[1642094974758,0.25,150.73,150.69,9.952]
[1642094975157,17.21270281,150.74,150.69,9.952]
[1642094976557,17.46270281,150.74,150.69,9.952]
[1642094977191,2.654,150.79,150.69,9.952]
[1642094977390,2.654,150.79,150.74,9.9472]
[1642094977590,7.82,150.85,150.74,10.1972]
[1642094977989,7.82,150.85,150.74,10.4572]
[1642094978190,12.34667076,150.84,150.75,16.12594216]
[1642094978390,12.34667076,150.84,150.76,33.1497]
[1642094978592,12.34667076,150.84,150.77,2.652]
[1642094978989,12.34667076,150.84,150.77,2.902]
[1642094979190,12.34667076,150.84,150.8,9.945]
[1642094979489,12.59667076,150.84,150.8,9.945]
[1642094980090,12.34667076,150.84,150.8,9.945]
[1642094981194,12.34667076,150.84,150.79,9.9457]
[1642094981592,12.59667076,150.84,150.79,9.9457]
[1642094981794,12.59667076,150.84,150.77,2.652]
[1642094981994,12.59667076,150.84,150.71,17.87463589]
[1642094981995,18.59667076,150.84,150.71,17.87463589]
[1642094982892,18.59667076,150.84,150.72,3.80066457]
[1642094983094,18.59667076,150.84,150.73,2.652]
[1642094983295,2.652,150.83,150.74,9.9485]
[1642094983493,8.902,150.83,150.74,9.9485]
[1642094983696,2.902,150.83,150.74,9.9485]
[1642094984497,2.902,150.83,150.74,10.2085]
[1642094984795,0.25,150.83,150.79,9.9456]
[1642094984993,12.34667076,150.84,150.79,9.9456]
[1642094984994,12.59667076,150.84,150.79,9.9456]
[1642094985395,12.59667076,150.84,150.75,2.652]
[1642094985697,12.59667076,150.84,150.75,0.25]
[1642094986310,12.59667076,150.84,150.78,9.9464]
[1642094988399,12.59667076,150.84,150.77,9.9471]
[1642094988599,12.59667076,150.84,150.73,35.809]
[1642094988801,18.59667076,150.84,150.73,33.157]
[1642094989000,83.92667076,150.84,150.73,33.157]
[1642094989400,12.59667076,150.84,150.74,15.78073045]
[1642094989602,12.34667076,150.84,150.77,17.40050306]
[1642094989800,10.472,150.88,150.77,17.40050306]
[1642094990000,13.82,150.88,150.77,23.91050306]
[1642094990801,14.92089365,150.87,150.82,9.942]
[1642094991803,2.65,150.88,150.82,9.942]
[1642094992005,2.65,150.92,150.82,10.202]
[1642094992201,7.82,150.93,150.82,10.202]
[1642094992401,6.0,150.92,150.82,10.202]
[1642094992603,6.0,150.93,150.82,10.202]
[1642094992801,22.55863133,150.93,150.82,10.202]
[1642094993002,22.80863133,150.93,150.82,10.202]
[1642094993202,9.9413,150.92,150.82,9.942]
[1642094993401,75.2713,150.92,150.82,12.592]
[1642094993602,2.65,150.91,150.82,9.942]
[1642094994102,8.9,150.91,150.82,9.942]
[1642094994303,12.8424,150.91,150.82,10.202]
[1642094994511,14.34533029,150.9,150.82,10.202]
[1642094995438,14.34533029,150.9,150.82,9.942]
[1642094995808,7.82,150.89,150.8,12.5945]
[1642094996010,82.05,150.89,150.8,2.65]
[1642094996511,15.17684872,150.85,150.8,2.65]
[1642094996808,22.99684872,150.85,150.8,2.65]
[1642094997010,29.24684872,150.85,150.78,9.9454]
[1642094997610,39.19254872,150.85,150.75,2.652]
[1642094997809,49.74054872,150.85,150.72,2.652]
[1642094998011,49.74054872,150.85,150.74,9.9485]
[1642094998609,41.84454872,150.85,150.74,9.9485]
[1642094998811,39.19254872,150.85,150.75,2.652]
[1642094999011,39.19254872,150.85,150.75,0.25]